bitfinex/quotes_ETHUSD_20241223
["timestamp","ask_amount","ask_price","bid_price","bid_amount"]
[1734964987411,3.02354,3307.4,3307.0,0.1683068]
[1734964987611,0.7822,3307.8,3307.0,0.1683068]
[1734964987812,0.03017251,3307.8,3307.0,0.1683068]
[1734964988164,3.882355,3308.4,3307.0,0.1683068]
[1734964988317,3.02322,3307.8,3307.0,0.1683068]
[1734964988516,3.02297,3308.0,3307.0,0.1683068]
[1734964988718,3.02317,3307.8,3307.0,0.1683068]
[1734964988942,3.02282,3308.2,3307.0,0.1683068]
[1734964989154,3.02259,3308.5,3307.0,0.1683068]
[1734964989336,6.130345,3308.9,3307.1,0.31922168]
[1734964989337,0.03017251,3308.8,3307.1,0.31922168]
[1734964989532,3.02261,3308.4,3307.3,3.02353]
[1734964989731,3.108155,3308.4,3307.1,0.31922168]
[1734964989914,3.02316,3307.8,3307.0,0.1683068]
[1734964990262,6.130825,3308.4,3307.0,0.1683068]
[1734964990412,3.02279,3308.2,3307.1,3.02377]
[1734964990616,6.130785,3308.4,3307.1,3.02377]
[1734964990844,3.02263,3308.4,3307.3,3.02361]
[1734964991053,3.02263,3308.4,3307.4,0.302361]
[1734964991433,3.02237,3308.7,3307.4,3.325791]
[1734964991738,3.108155,3307.9,3307.0,0.1683068]
[1734964991950,0.03017251,3307.8,3307.0,0.1683068]
[1734964992462,3.02324,3307.7,3307.0,0.1683068]
[1734964992671,0.03017251,3307.6,3307.0,0.1683068]
[1734964992836,3.02339,3307.6,3307.0,0.1683068]
[1734964993169,3.0237,3307.2,3307.0,0.1683068]
[1734964993502,3.02379,3307.1,3307.0,0.1683068]
[1734964993843,3.326169,3307.1,3307.0,6.8e-06]
[1734964994044,3.35634151,3307.1,3307.0,6.8e-06]
[1734964994368,3.326169,3307.1,3307.0,6.8e-06]
[1734964994548,3.02379,3307.1,3307.0,6.8e-06]
[1734964996324,0.7814,3307.4,3307.0,6.8e-06]
[1734964996609,0.8035,3308.0,3307.0,6.8e-06]
[1734964996812,3.02361,3307.3,3307.0,6.8e-06]
[1734964997155,0.8035,3308.0,3307.0,6.8e-06]
[1734964997387,3.0228,3308.2,3307.0,3.0238668]
[1734964997588,0.03017251,3308.1,3307.1,0.30238668]
[1734964997757,6.130855,3308.3,3307.1,0.02865146]
[1734964997961,3.0237,3307.2,3307.0,6.8e-06]
[1734964998200,3.02346,3307.5,3307.0,6.8e-06]
[1734964998350,3.02379,3307.1,3307.0,6.8e-06]
[1734964999028,0.7885,3307.7,3307.0,6.8e-06]
[1734964999313,3.108155,3307.8,3307.0,6.8e-06]
[1734964999600,0.34098801,3307.7,3307.0,6.8e-06]
[1734964999806,3.02372,3307.2,3307.0,6.8e-06]
[1734965000098,3.0237,3307.3,3307.0,6.8e-06]
[1734965000710,0.3108155,3307.7,3307.0,6.8e-06]
[1734965000874,3.878755,3307.8,3307.0,6.8e-06]
[1734965001084,3.0237,3307.2,3307.1,0.03450697]
[1734965001281,0.7899,3308.5,3307.0,6.8e-06]
[1734965001484,1.48922969,3309.9,3308.1,3.0228]
[1734965001763,3.02197,3309.1,3308.2,0.0341201]
[1734965002010,4.5452324,3309.8,3308.2,3.02278]
[1734965002211,1.5238424,3309.8,3308.5,3.02249]
[1734965002522,1.5238424,3309.8,3308.3,0.03718357]
[1734965002523,4.5451924,3309.8,3308.6,3.05260002]
[1734965002696,3.02159,3309.6,3308.6,0.0641995]
[1734965002859,3.02178,3309.4,3308.6,0.03397948]
[1734965003060,1.23613711,3309.8,3308.8,3.02218]
[1734965003379,0.8255,3310.4,3308.9,0.03695349]
[1734965003577,3.02117,3310.0,3308.9,0.03695349]
[1734965003765,3.84634,3310.4,3308.4,3.02256]
[1734965004107,0.8255,3310.4,3308.7,3.02229]
[1734965004402,3.02126,3309.9,3308.8,0.03699183]
[1734965004620,0.8255,3310.4,3308.8,0.03699183]
[1734965004621,3.02133,3309.8,3308.8,0.03699183]
[1734965004782,3.0217,3309.4,3308.8,0.03699183]
[1734965004985,1.209326,3310.9,3308.3,0.25]
[1734965005164,1.209326,3310.9,3309.4,6.02168]
[1734965005363,1.209326,3310.9,3308.9,0.03695349]
[1734965005364,3.8341,3311.5,3309.5,0.03020136]
[1734965005565,3.01987,3311.4,3309.7,0.59375434]
[1734965005767,3.01987,3311.4,3308.7,0.03020704]
[1734965005768,0.814,3311.2,3308.7,0.03020704]
[1734965006062,3.02051,3310.7,3309.0,3.02205]
[1734965006266,3.02051,3310.7,3308.7,3.0]
[1734965006480,3.02051,3310.7,3309.0,3.02205]
[1734965006679,3.02051,3310.7,3309.1,3.02188]
[1734965006910,3.02087,3310.4,3309.1,3.02188]
[1734965007321,3.02092,3310.3,3309.1,3.02188]
[1734965007622,3.02077,3310.5,3309.3,3.02175]
[1734965007774,0.302051,3310.6,3309.4,3.02164]
[1734965007979,0.302051,3310.6,3309.0,3.02205]
[1734965007980,3.02032,3311.0,3309.0,2.450996]
[1734965008217,3.02032,3311.0,3308.8,0.62329892]
[1734965008427,3.02067,3310.6,3309.3,3.02178]
[1734965008780,0.814,3311.2,3309.3,3.02178]
[1734965008981,3.02096,3310.2,3309.0,3.02197]
[1734965009225,0.302096,3310.2,3308.8,0.59308849]
[1734965009425,3.02127,3309.9,3308.8,0.59308849]
[1734965010019,3.02124,3309.9,3308.8,0.59308849]
[1734965010827,3.02087,3310.3,3309.0,3.02202]
[1734965010976,0.814,3311.2,3308.8,0.59308849]
[1734965011311,3.02079,3310.4,3309.1,3.02196]
[1734965011480,0.814,3311.2,3309.2,3.323986]
[1734965011481,3.02069,3310.5,3309.2,3.323986]
[1734965011683,3.02069,3310.5,3309.3,3.02176]
[1734965012027,3.02079,3310.4,3309.1,3.02193]
[1734965012816,0.814,3311.2,3309.3,0.61639129]
[1734965013039,3.02061,3310.6,3309.3,3.63816129]
[1734965013199,3.02087,3310.3,3309.3,0.61639129]
[1734965013385,3.02097,3310.2,3309.3,0.61639129]
[1734965013580,3.02087,3310.4,3309.3,0.61639129]
[1734965014017,0.814,3311.2,3309.3,0.61639129]
[1734965014194,0.383417,3311.3,3310.3,3.02085]
[1734965014410,0.1592475,3311.2,3310.2,3.108155]
[1734965014591,0.383417,3311.3,3310.3,0.60828008]
[1734965014592,3.01996,3311.3,3310.3,0.60828008]
[1734965014912,3.02008,3311.2,3310.2,3.108155]
[1734965015192,0.7522,3311.7,3310.2,0.61857042]
[1734965015389,4.228928,3311.4,3310.2,0.61857042]
[1734965015584,1.209058,3311.4,3310.4,3.02073]
[1734965015789,1.209058,3311.4,3310.4,0.67776591]
[1734965016101,3.01944,3311.9,3310.7,3.0205]
[1734965016619,3.01944,3311.9,3310.8,3.02041]
[1734965016822,1.208673,3312.1,3310.8,3.02041]
[1734965017020,1.208673,3312.1,3310.4,0.67776591]
[1734965017021,3.01969,3311.6,3310.4,0.67776591]
[1734965017204,3.01969,3311.6,3309.8,3.0]
[1734965017205,3.02022,3311.1,3309.7,3.108155]
[1734965017404,3.02022,3311.1,3309.9,0.59562902]
[1734965017607,3.02033,3310.9,3309.9,0.59562902]
[1734965017838,0.7535,3311.4,3309.9,0.59562902]
[1734965018054,0.7535,3311.4,3309.1,1.24973657]
[1734965018196,3.0214,3309.8,3309.1,1.24973657]
[1734965018543,0.812,3311.2,3308.9,3.02214]
[1734965018743,3.02014,3311.1,3308.8,0.61796511]
[1734965019046,3.02124,3309.9,3308.8,0.61796511]
[1734965019210,3.0211,3310.1,3308.8,0.61796511]
[1734965019418,0.30211,3310.0,3308.5,1.24973657]
[1734965019752,0.7842,3309.7,3307.7,3.108155]
[1734965020135,3.02245,3308.6,3307.7,3.108155]
[1734965020318,0.7842,3309.7,3307.5,1.24973657]
[1734965020319,3.02261,3308.4,3307.5,1.24973657]
[1734965020503,0.302261,3308.4,3307.5,1.87473657]
[1734965020700,3.02328,3307.7,3307.5,0.625]
[1734965021202,3.02324,3307.8,3307.5,0.625]
[1734965021397,3.02251,3308.5,3307.5,0.625]
[1734965021753,3.02287,3308.2,3307.5,0.625]
[1734965021916,3.02246,3308.6,3307.5,0.625]
[1734965022098,3.02316,3307.8,3307.5,0.625]
[1734965022618,0.302246,3308.5,3307.5,0.625]
[1734965023166,3.02233,3308.7,3307.5,0.625]
[1734965023445,3.80649,3308.8,3307.5,0.625]
[1734965023446,3.80582,3309.5,3307.5,0.625]
[1734965023676,3.80582,3309.5,3307.6,0.03022165]
[1734965023677,0.7842,3309.5,3307.6,0.03022165]
[1734965023824,3.02206,3309.0,3307.7,3.02317]
[1734965024024,0.7842,3309.5,3307.9,3.02302]
[1734965024254,3.02207,3309.0,3308.0,0.302302]
[1734965024461,0.30211,3310.0,3308.0,0.302302]
[1734965024645,3.02207,3309.0,3307.9,3.02305]
[1734965024856,3.02207,3309.0,3308.1,0.60721233]
[1734965025236,3.02167,3309.5,3308.1,0.60721233]
[1734965025564,3.02176,3309.4,3308.2,3.02275]
[1734965025749,3.02183,3309.3,3308.1,0.60721233]
[1734965025919,3.02209,3309.0,3308.1,0.97023056]
[1734965026119,3.02217,3308.9,3307.5,0.65522033]
[1734965026346,3.02233,3308.8,3307.9,0.60901257]
[1734965026571,3.02235,3308.7,3307.5,0.625]
[1734965026869,3.02235,3308.7,3307.5,3.64842]
[1734965027525,3.02234,3308.7,3307.5,3.64842]
[1734965027724,3.02142,3309.7,3307.5,0.575]
[1734965027725,3.02334,3307.6,3307.5,0.575]
[1734965028128,3.02312,3307.9,3307.5,0.575]
[1734965028381,3.02278,3308.3,3307.5,0.575]
[1734965028382,3.02316,3307.8,3307.5,0.575]
[1734965028682,3.02311,3307.9,3307.5,0.575]
[1734965028852,3.324664,3308.6,3307.5,0.575]
[1734965028853,3.02324,3307.8,3307.5,0.575]
[1734965029051,3.02251,3308.5,3307.5,0.575]
[1734965029268,6.0454,3308.3,3307.5,0.575]
[1734965029469,3.02321,3307.8,3307.5,0.575]
[1734965029920,3.02279,3308.2,3307.5,0.575]
[1734965029921,3.02302,3308.0,3307.5,0.575]
[1734965031002,1.209946,3307.9,3307.5,0.575]
[1734965032384,3.02271,3308.3,3307.5,0.575]
[1734965032588,3.02224,3308.8,3307.5,0.575]
[1734965032896,1.209893,3308.0,3307.5,0.575]
[1734965033043,0.302224,3308.7,3307.5,0.575]
[1734965033250,0.8172,3309.1,3307.5,0.575]
[1734965033452,1.209857,3308.1,3307.5,0.575]
[1734965034289,3.02229,3308.8,3307.5,0.575]
[1734965034458,1.209692,3308.6,3307.5,0.575]
[1734965034873,1.209692,3308.6,3307.5,3.59841]
[1734965035095,1.209692,3308.6,3307.7,3.0232]
[1734965035275,3.02252,3308.5,3307.9,0.59135258]
[1734965035477,3.02252,3308.5,3307.9,0.54135258]
[1734965035819,4.232142,3308.6,3307.9,0.54135258]
[1734965036112,3.0227,3308.3,3307.9,0.54135258]
[1734965036588,3.02281,3308.2,3307.9,0.54135258]
[1734965036793,3.0229,3308.1,3307.5,0.575]
[1734965037176,3.02299,3308.0,3307.5,0.575]
[1734965038008,1.6328992,3308.6,3307.5,1.18203881]
[1734965038009,3.02278,3308.3,3307.5,1.18203881]
[1734965038606,4.6553892,3308.6,3307.5,1.18203881]
[1734965038916,1.209692,3308.6,3307.6,3.44388488]
[1734965039089,3.02254,3308.5,3307.6,0.42055488]
[1734965039598,1.209692,3308.6,3307.7,3.02324]
[1734965039906,1.209692,3308.6,3307.9,3.02304]
[1734965040072,1.209692,3308.6,3307.7,3.02322]
[1734965040261,4.232192,3308.6,3307.8,0.34437749]
[1734965040466,1.209692,3308.6,3307.6,0.42055488]
[1734965040666,1.209692,3308.6,3307.7,3.02319]
[1734965040976,1.209692,3308.6,3307.8,3.02312]
[1734965041196,3.02179,3309.3,3308.3,3.02267]
[1734965041491,1.209517,3309.1,3308.5,0.61499519]
[1734965041663,1.209517,3309.1,3308.4,3.02253]
[1734965042015,3.0214,3309.8,3308.5,0.302253]
[1734965042300,4.2312,3309.4,3308.3,3.02267]
[1734965042455,4.2312,3309.4,3308.1,0.03021901]
[1734965042656,4.2312,3309.4,3307.5,0.72894802]
[1734965042657,3.02187,3309.2,3307.5,0.575]
[1734965042891,0.7998,3309.3,3307.5,0.575]
[1734965043107,3.02253,3308.5,3307.5,0.575]
[1734965043299,3.02253,3308.5,3307.5,3.59839]
[1734965043528,3.02243,3308.6,3307.6,3.02333]
[1734965043692,0.302214,3308.9,3307.5,0.575]
[1734965043861,0.302214,3308.9,3307.8,0.61687239]
[1734965044064,3.02196,3309.1,3307.5,0.575]
[1734965044263,3.02334,3307.6,3307.5,0.575]
[1734965045263,3.02407,3306.8,3306.5,1.24973657]
[1734965045478,3.02425,3306.6,3306.5,1.24973657]
[1734965045715,6.132405,3306.6,3306.2,2.71e-06]
[1734965045863,3.02452,3306.3,3306.2,2.71e-06]
[1734965046415,3.0248,3306.0,3305.4,0.015]
[1734965046580,3.0248,3306.0,3305.9,1e-05]
[1734965047162,3.02526,3305.5,3305.4,1e-05]
[1734965048025,0.7611,3306.4,3305.4,1e-05]
[1734965048177,3.02526,3305.5,3305.4,1e-05]
[1734965048384,0.7611,3306.4,3305.4,1e-05]
[1734965049025,3.02415,3306.8,3305.4,1e-05]
[1734965049244,3.02464,3306.2,3305.4,1e-05]
[1734965049398,0.7611,3306.9,3305.4,1e-05]
[1734965049399,3.02492,3305.9,3305.4,1e-05]
[1734965049777,3.02486,3306.0,3305.4,1e-05]
[1734965050031,0.7611,3306.9,3305.4,1e-05]
[1734965050032,3.02416,3306.7,3305.4,1e-05]
[1734965050233,3.02491,3305.9,3305.4,1e-05]
[1734965050385,3.02503,3305.8,3305.4,1e-05]
[1734965050590,0.302416,3306.6,3305.4,1e-05]
[1734965050591,3.02509,3305.7,3305.4,1e-05]
[1734965050785,6.04868,3306.5,3305.4,1e-05]
[1734965051024,0.302416,3306.6,3305.4,1e-05]
[1734965051290,3.02526,3305.5,3305.4,1e-05]
[1734965052888,3.02509,3305.7,3305.4,1e-05]
[1734965053246,0.823,3306.0,3305.4,1e-05]
[1734965053439,3.02513,3305.7,3305.4,1e-05]
[1734965053751,0.823,3306.0,3305.4,1e-05]
[1734965053972,3.02489,3305.9,3305.4,1e-05]
[1734965054261,3.02517,3305.6,3305.4,1e-05]
[1734965054471,3.0248,3306.1,3305.4,1e-05]
[1734965054648,0.8011,3306.5,3305.4,1e-05]
[1734965054965,3.02465,3306.2,3305.4,1e-05]
[1734965055174,0.8011,3306.5,3305.4,1e-05]
[1734965055352,3.02526,3305.5,3305.4,1e-05]
[1734965055519,3.82636,3305.5,3305.4,1e-05]
[1734965056869,3.02526,3305.5,3305.4,1e-05]
[1734965057361,3.26526,3305.5,3305.4,1e-05]
[1734965057574,4.01646,3305.5,3305.4,1e-05]
[1734965057780,4.418106,3305.5,3305.4,1e-05]
[1734965058090,3.0,3306.5,3305.4,1e-05]
[1734965058252,3.02488,3306.0,3305.4,1e-05]
[1734965058452,3.0249,3305.9,3305.4,1e-05]
[1734965058853,0.24,3306.0,3305.4,1e-05]
[1734965059070,3.02454,3306.3,3305.4,1e-05]
[1734965059381,3.47668859,3307.4,3305.5,3.02525]
[1734965059382,1.21071,3306.5,3305.5,3.02525]
[1734965059549,3.02354,3307.4,3305.4,1e-05]
[1734965059550,3.108155,3307.6,3305.6,0.302526]
[1734965059735,3.02365,3307.3,3306.1,3.02469]
[1734965059933,4.233793,3307.5,3306.4,3.02439]
[1734965060142,1.23613711,3307.7,3305.7,6.05521853]
[1734965060348,1.210224,3307.9,3305.8,0.63577445]
[1734965060647,3.02371,3307.2,3306.4,0.61032336]
[1734965060847,3.02397,3307.0,3305.6,0.302526]
[1734965061094,3.108155,3307.2,3305.1,3.0]
[1734965061277,3.108155,3307.2,3305.0,3.02563]
[1734965061460,3.108155,3307.2,3304.6,0.03024685]
[1734965061665,3.108155,3307.2,3305.3,3.02542]
[1734965062388,3.02455,3306.3,3305.2,3.02547]
[1734965062590,3.108155,3307.2,3305.4,0.5963935]
[1734965062892,3.0244,3306.5,3305.4,0.5963935]
[1734965063493,3.0244,3306.5,3305.4,3.6216935]
[1734965063701,3.02403,3306.9,3305.5,0.36216935]
[1734965063702,3.02399,3306.9,3305.5,0.36216935]
[1734965063848,3.02424,3306.7,3305.5,3.02525]
[1734965064204,3.02357,3307.4,3305.7,3.02504]
[1734965064346,3.02343,3307.5,3305.4,0.5963935]
[1734965064676,3.108155,3307.2,3305.4,1e-05]
[1734965065263,3.108155,3307.2,3305.4,3.02535]
[1734965065587,3.02397,3307.0,3305.4,1e-05]
[1734965065801,3.02397,3307.0,3305.4,3.02528]
[1734965065951,0.7786,3307.6,3305.4,1e-05]
[1734965066302,3.02379,3307.2,3306.0,3.0248]
[1734965066495,3.02334,3307.6,3306.3,3.02445]
[1734965066704,1.210224,3307.9,3306.4,0.03023795]
[1734965066998,1.210224,3307.9,3305.4,0.36164186]
[1734965066999,3.02392,3307.0,3305.9,3.02488]
[1734965067155,3.02369,3307.3,3305.6,0.03024218]
[1734965067499,0.24463611,3307.8,3306.0,0.6170359]
[1734965067711,2.04843711,3308.5,3306.9,3.02396]
[1734965068013,3.108155,3308.7,3306.4,3.02443]
[1734965068014,1.210113,3308.1,3307.0,0.03023405]
[1734965068167,1.210113,3308.1,3308.0,3.02297]
[1734965068366,1.23613711,3308.7,3308.6,3.02242]
[1734965068914,0.56242035,3308.7,3308.6,6.02242]
[1734965069065,0.21762035,3308.7,3308.6,6.624662]
[1734965069572,0.21762035,3308.7,3307.4,3.0]
[1734965070111,3.0218,3309.3,3307.4,3.0]
[1734965070112,3.0218,3309.3,3308.0,3.02293]
[1734965070292,0.7941,3309.9,3308.0,0.59933877]
[1734965070478,3.02183,3309.3,3308.1,3.02283]
[1734965070915,3.02188,3309.2,3308.0,0.59933877]
[1734965071092,0.302188,3309.1,3308.0,0.59933877]
[1734965071285,3.902255,3309.9,3307.0,3.0]
[1734965071462,3.02231,3308.8,3307.6,3.64154803]
[1734965071668,3.902255,3309.9,3307.6,0.61824803]
[1734965072094,3.02236,3308.7,3307.6,3.64156803]
[1734965072298,3.02236,3308.7,3307.6,0.61824803]
[1734965072587,3.02247,3308.6,3307.6,0.3641648]
[1734965072786,0.7902,3308.9,3307.3,0.60154927]
[1734965072988,3.02239,3308.7,3307.3,0.60154927]
[1734965073218,3.02287,3308.2,3307.0,3.02388]
[1734965073439,3.02251,3308.5,3306.7,0.61965145]
[1734965073590,3.02413,3306.8,3306.4,0.03023408]
[1734965073806,3.02462,3306.2,3306.1,1.25452045]
[1734965074907,0.8166,3306.7,3305.4,1e-05]
[1734965075092,3.02471,3306.1,3305.4,1e-05]
[1734965075289,0.8166,3306.7,3305.4,1e-05]
[1734965075593,3.02453,3306.3,3305.4,1e-05]
[1734965076096,3.02445,3306.4,3305.4,1e-05]
[1734965076438,0.8166,3306.7,3305.4,0.302564]
[1734965076617,3.02445,3306.4,3305.4,1e-05]
[1734965077292,0.7961,3307.2,3305.4,1e-05]
[1734965077636,3.81985,3307.2,3305.4,1e-05]
[1734965077840,0.7961,3307.7,3305.4,1e-05]
[1734965078142,2.66982269,3308.2,3305.9,3.02483]
[1734965078308,3.02365,3307.3,3306.0,0.302483]
[1734965078638,3.02365,3307.3,3306.1,3.02469]
[1734965079146,3.108155,3308.4,3306.1,3.02469]
[1734965079147,3.91897116,3308.9,3306.3,3.0]
[1734965079436,5.06514472,3308.9,3306.8,3.02407]
[1734965079736,3.02224,3308.8,3307.7,3.02321]
[1734965080036,1.24688472,3308.9,3307.7,0.302321]
[1734965080338,0.7961,3308.8,3306.8,0.60381381]
[1734965080630,3.02282,3308.2,3306.1,3.0247]
[1734965080836,3.02344,3307.5,3306.2,3.02459]
[1734965081000,3.02344,3307.5,3306.0,0.03023446]
[1734965081204,0.8183,3307.8,3306.3,3.02451]
[1734965081409,3.02355,3307.4,3306.0,0.45870995]
[1734965081610,3.02362,3307.3,3306.2,3.02457]
[1734965082091,3.02343,3307.6,3306.3,3.02445]
[1734965082294,3.02343,3307.5,3306.3,3.63117142]
[1734965082496,0.8183,3307.8,3306.4,0.36311714]
[1734965082699,3.02345,3307.5,3306.4,0.36311714]
[1734965082902,3.02345,3307.5,3306.4,3.38754714]
[1734965083608,0.8183,3307.8,3306.4,0.36311714]
[1734965083795,3.02307,3307.9,3306.6,3.02418]
[1734965084142,3.02282,3308.2,3306.7,0.30544163]
[1734965084143,3.02356,3307.4,3306.7,0.30544163]
[1734965084439,3.02337,3307.6,3306.3,3.63123142]
[1734965084635,3.108155,3307.9,3306.0,0.42847549]
[1734965084845,3.108155,3307.9,3305.4,1e-05]
[1734965084846,3.02324,3307.7,3305.4,1e-05]
[1734965085004,0.8192,3307.8,3305.7,3.02501]
[1734965085210,0.8192,3307.8,3305.8,0.03023968]
[1734965085397,3.02324,3307.7,3306.0,3.02471]
[1734965085597,0.8192,3307.8,3306.1,0.95031689]
[1734965085797,0.8192,3307.8,3306.3,3.02451]
[1734965086003,0.8192,3307.8,3306.1,0.64784589]
[1734965086004,3.02348,3307.5,3306.1,0.64784589]
[1734965086205,3.02348,3307.5,3306.2,3.02459]
[1734965086206,3.02351,3307.5,3306.2,3.02459]
[1734965086639,3.02351,3307.5,3306.1,0.64784589]
[1734965086640,3.02364,3307.3,3306.1,0.64784589]
[1734965086819,0.8192,3307.8,3306.1,0.64784589]
[1734965087024,3.0237,3307.3,3306.1,3.64222884]
[1734965087224,3.0237,3307.3,3306.2,0.36422288]
[1734965087733,3.0237,3307.3,3306.1,0.64784774]
[1734965087937,0.8192,3307.8,3306.1,3.61760884]
[1734965088154,0.8192,3307.8,3305.4,1e-05]
[1734965088356,3.02434,3306.5,3305.4,3.02534]
[1734965088499,3.02418,3306.7,3305.5,3.327784]
[1734965088694,3.02418,3306.7,3305.9,0.60731233]
[1734965088934,2.98812798,3306.7,3305.9,0.60731233]
[1734965089333,3.02324,3307.7,3305.9,0.60731233]
[1734965089509,3.02407,3306.8,3305.9,0.60731233]
[1734965089709,3.02401,3306.9,3306.0,0.36322223]
[1734965089917,3.02443,3306.4,3305.9,0.60731233]
[1734965090249,3.02509,3305.7,3305.4,1e-05]
[1734965090813,3.0247,3306.2,3305.4,1e-05]
[1734965091114,3.02488,3306.0,3305.4,1e-05]
[1734965091315,3.02433,3306.6,3305.4,1e-05]
[1734965091643,3.02476,3306.1,3305.4,1e-05]
[1734965091844,3.02416,3306.7,3305.4,1e-05]
[1734965091998,3.0246,3306.3,3305.4,1e-05]
[1734965092197,0.7662,3306.8,3305.4,3.02535]
[1734965092401,3.02526,3305.5,3305.4,1e-05]
[1734965099744,3.81306,3305.5,3305.4,1e-05]
[1734965101996,3.02526,3305.5,3305.4,1e-05]
[1734965103847,3.327786,3305.5,3305.4,1e-05]
[1734965104068,3.02526,3305.5,3305.4,1e-05]
[1734965104267,3.02434,3306.5,3305.4,1e-05]
[1734965104498,3.108155,3305.9,3305.4,1e-05]
[1734965104807,3.02526,3305.5,3305.4,1e-05]
[1734965105093,3.327786,3305.5,3305.4,1e-05]
[1734965105269,6.514786,3305.5,3305.4,1e-05]
[1734965105678,3.02626,3304.4,3304.3,0.00249545]
[1734965107500,3.02602,3304.7,3304.3,0.00249545]
[1734965107801,3.02681,3303.8,3303.7,6.95e-06]
[1734965108008,3.329491,3303.8,3303.7,6.95e-06]
[1734965108750,3.02681,3303.8,3303.7,6.95e-06]
[1734965111303,3.02641,3304.3,3303.7,6.95e-06]
[1734965111600,1.069026,3305.5,3303.7,6.95e-06]
[1734965111813,3.02593,3304.8,3303.7,6.95e-06]
[1734965112015,3.02616,3304.6,3303.7,0.61021487]
[1734965112355,3.0262,3304.5,3303.7,0.61021487]
[1734965112555,3.026,3304.7,3303.7,0.61021487]
[1734965112796,3.02544,3305.3,3303.7,0.61021487]
[1734965112982,3.02616,3304.6,3303.7,6.95e-06]
[1734965113316,3.02681,3303.8,3303.7,6.95e-06]
[1734965113473,3.02553,3305.2,3303.7,6.95e-06]
[1734965113668,0.302553,3305.1,3303.7,6.95e-06]
[1734965113859,3.02656,3304.1,3303.7,6.95e-06]
[1734965114078,3.02676,3303.9,3303.7,6.95e-06]
[1734965114274,3.02638,3304.3,3303.7,6.95e-06]
[1734965114275,3.02681,3303.8,3303.7,6.95e-06]
[1734965115774,0.7986,3304.8,3303.7,6.95e-06]
[1734965115971,3.02608,3304.6,3303.7,6.95e-06]
[1734965116190,0.53410807,3305.4,3303.7,6.95e-06]
[1734965116403,0.7654,3305.3,3303.7,6.95e-06]
[1734965116682,3.02645,3304.2,3303.7,6.95e-06]
[1734965116878,3.02658,3304.1,3303.7,6.95e-06]
[1734965117082,3.02644,3304.3,3303.7,6.95e-06]
[1734965117380,3.02603,3304.7,3303.7,6.95e-06]
[1734965117723,3.02608,3304.6,3303.7,6.95e-06]
[1734965117905,0.7654,3305.3,3303.7,3.02690695]
[1734965118113,3.02546,3305.3,3303.7,3.02689695]
[1734965118308,3.643615,3305.6,3303.8,0.30268969]
[1734965118487,3.02589,3304.9,3303.7,6.95e-06]
[1734965118710,3.643615,3305.6,3303.7,6.95e-06]
[1734965118932,0.618455,3305.6,3303.7,6.95e-06]
[1734965119172,3.0248,3306.0,3304.4,3.02621]
[1734965119316,3.0248,3306.0,3304.1,0.03025691]
[1734965119645,3.02491,3305.9,3304.2,0.30568869]
[1734965119835,3.02489,3305.9,3304.5,3.02612]
[1734965119983,3.02489,3305.9,3304.0,3.02658]
[1734965119984,1.210916,3306.3,3304.6,0.03025438]
[1734965120185,3.02466,3306.2,3304.7,3.02591]
[1734965120425,3.02466,3306.2,3304.8,3.02581]
[1734965120733,3.108155,3306.4,3304.9,0.302581]
[1734965120881,3.02452,3306.3,3304.5,0.60076808]
[1734965121082,0.7747,3305.6,3303.7,6.95e-06]
[1734965121292,3.02614,3304.6,3303.7,6.95e-06]
[1734965121523,3.108155,3305.4,3303.7,6.95e-06]
[1734965121728,0.12118704,3304.5,3303.9,3.02664]
[1734965121892,0.12118704,3304.5,3304.0,3.329274]
[1734965122091,0.12118704,3304.5,3304.0,0.302664]
[1734965122323,0.12118704,3304.4,3304.0,0.302664]
[1734965122524,0.12118704,3304.4,3304.0,3.0266]
[1734965122757,3.02479,3306.1,3304.0,3.02663]
[1734965123027,1.24688472,3306.2,3305.6,3.0251]
[1734965123228,1.24688472,3306.2,3304.5,3.0]
[1734965123381,0.12133864,3306.0,3304.7,3.0]
[1734965123581,0.12133864,3306.0,3304.8,0.602608]
[1734965123824,0.12133864,3306.0,3305.0,3.02571]
[1734965124047,0.12133864,3305.9,3305.1,0.03024697]
[1734965124380,1.24688472,3306.3,3305.8,6.02498]
[1734965124584,1.24688472,3306.3,3305.3,3.02544]
[1734965124585,3.02355,3307.4,3306.4,3.02442]
[1734965124808,0.302355,3307.4,3305.8,0.60115963]
[1734965125026,1.24688472,3307.7,3306.0,3.0248]
[1734965125254,1.24688472,3307.7,3306.1,3.03023744]
[1734965125379,0.12135247,3307.3,3307.2,3.0237]
[1734965125996,0.12135247,3307.3,3307.2,6.0237]
[1734965126435,1.24688472,3308.6,3307.7,3.02322]
[1734965126736,1.24688472,3308.6,3307.2,3.0]
[1734965126933,1.24688472,3308.6,3307.5,3.02334]
[1734965127233,0.12091716,3308.5,3307.3,3.63637939]
[1734965127415,0.12091716,3308.5,3307.6,0.60728216]
[1734965127619,0.12091716,3308.5,3307.7,3.05341163]
[1734965127779,0.12091716,3308.5,3307.6,0.60728216]
[1734965127984,3.02211,3309.0,3307.6,0.60728216]
[1734965128321,0.302211,3309.0,3307.7,3.05346411]
[1734965128523,0.777,3309.5,3307.8,3.02315]
[1734965128524,0.1206509,3308.9,3307.8,3.02315]
[1734965128683,0.1206509,3308.9,3308.4,3.02252]
[1734965129099,0.1206509,3308.9,3308.2,3.02279]
[1734965129260,0.7507,3309.9,3308.6,3.0224]
[1734965129435,1.986064,3310.4,3308.7,0.03021818]
[1734965129635,0.7766,3310.4,3308.7,0.61261664]
[1734965129843,3.02199,3309.1,3308.2,0.3]
[1734965130007,3.02207,3309.0,3307.5,3.0]
[1734965130209,3.02207,3309.0,3307.8,3.0]
[1734965130460,3.7982,3309.5,3307.3,0.58260419]
[1734965130461,0.7766,3309.5,3308.3,0.6029782]
[1734965130619,3.40507433,3309.1,3307.2,3.02364]
[1734965130825,3.0224,3308.7,3307.3,3.0537976]
[1734965131161,0.1199672,3309.0,3307.5,0.60158396]